Cogmind - Beta 14 @@@ ROGUE MODE // 2025.03.15 @ 14:30:28 Player: mathSq Result: Destroyed by P-70 Sage with Tesla Rifle Performance ------------- Evolutions (6) 3000 Regions Visited (11) 2200 Robots Destroyed (86) 430 Value Destroyed (2380) 2380 Prototype IDs (41) 820 Alien Tech Used (0) 0 Bonus (2193) 2193 TOTAL SCORE: 11023 Bonus ------- High Alert Combat Kills 629 Follower Combat Kills 1309 Aligned with FarCom 300 Friendly Fire -45 Cogmind --------- Core Integrity 0/1150 Matter 290/300 Energy 8/100 System Corruption 13% Temperature Cool (2) Movement Hovering (70) Location -4/Factory Parts ------- > --- POWER (2) -------- (None) > --- PROPULSION (6) --- Improved Gyrokinetic Inverter > --- UTILITY (9) ------ Triangulator Improved Launcher Guidance Computer Advanced Hacking Suite System Guard > --- WEAPON (2) ------- (None) > --- INVENTORY (5) ---- Improved VTOL Module Xenon Bombardment Thruster Cooled VTOL Module Nuclear Pulse Thruster Advanced Shield Generator Peak State ------------ > --- POWER ------------ Light Angular Momentum Engine Light Antimatter Reactor > --- PROPULSION ------- Cooled Airjet Gravmag Array Gyrokinetic Inverter Improved Antigrav System Improved Gyrokinetic Inverter > --- UTILITY ---------- Small Storage Unit Improved Launcher Guidance Computer ECM Suite Improved Propulsion Shielding Improved Medium Armor Plating Hacking Suite Hacking Suite Improved Hacking Suite Trap Reconfigurator > --- WEAPON ----------- Mini Smartbomb Launcher Molecular Scythe > --- INVENTORY -------- Fusion Compressor Improved VTOL Module Xenon Bombardment Thruster Cooled VTOL Module Nuclear Pulse Thruster Advanced Shield Generator Advanced Hacking Suite Missile Launcher [Rating: 100] Favorites ----------- Power Ion Engine Engine Ion Engine Power Core Micro Nuclear Core Reactor Light Antimatter Reactor Propulsion Light Treads Treads Light Treads Leg Aluminum Leg Hover Unit Cooled Airjet Flight Unit Cesium-ion Thruster Utility Hacking Suite Device Trap Reconfigurator Storage Small Storage Unit Processor Improved Launcher Guidance Computer Hackware Hacking Suite Protection Improved Propulsion Shielding Weapon Assault Rifle Energy Gun EM Pulse Gun Ballistic Gun Assault Rifle Ballistic Cannon Mini Assault Cannon Launcher Mini Smartbomb Launcher Slashing Weapon Axe Build | -11 -10 -10 -10 -9 -8 -7 -6 -6 -6 -5 -4 ------- Run | Yrd Mat Min Exi Min Mat Fac Fac Was Fac Fac Fac Slots Evolved 12 | . . . . . 4 2 2 . . 2 2 Power 1 | . . . . . . . . . . . 1 Propulsion 4 | . . . . . 1 1 1 . . . 1 Utility 7 | . . . . . 3 1 1 . . 2 . Weapon . | . . . . . . . . . . . . Parts Attached 129 | 7 7 . 2 . 22 34 . 6 10 17 24 Power 15 | 1 1 . . . 1 1 . 1 . 3 7 Engine 6 | 1 1 . . . 1 1 . . . 1 1 Core 7 | . . . . . . . . 1 . 2 4 Reactor 2 | . . . . . . . . . . . 2 Propulsion 37 | 2 3 . . . 10 12 . 1 4 1 4 Treads 15 | 2 3 . . . 8 1 . . . . 1 Leg 1 | . . . . . 1 . . . . . . Wheel . | . . . . . . . . . . . . Hover 16 | . . . . . . 9 . 1 2 1 3 Flight 5 | . . . . . 1 2 . . 2 . . Utility 50 | 2 . . 2 . 4 12 . 2 6 12 10 Device 29 | 1 . . 2 . . 6 . . 5 9 6 Storage 3 | 1 . . . . . 1 . . . 1 . Processor 3 | . . . . . . 1 . . . . 2 Hackware 5 | . . . . . 2 . . . . 2 1 Protection 10 | . . . . . 2 4 . 2 1 . 1 Artifact . | . . . . . . . . . . . . Weapon 27 | 2 3 . . . 7 9 . 2 . 1 3 Energy Gun 9 | . 2 . . . 4 3 . . . . . Energy Cannon . | . . . . . . . . . . . . Ballistic Gun 5 | 2 1 . . . 2 . . . . . . Ballistic Cannon 2 | . . . . . . 2 . . . . . Launcher 8 | . . . . . 1 4 . 2 . . 1 Special Weapon . | . . . . . . . . . . . . Impact Weapon . | . . . . . . . . . . . . Slashing Weapon 3 | . . . . . . . . . . 1 2 Piercing Weapon . | . . . . . . . . . . . . Special Melee Weapon . | . . . . . . . . . . . . Unidentified Prototypes 12 | . . . . . 4 3 . 1 . 3 1 Parts Lost 34 | . 2 . . . 3 7 . . . 1 21 Power 5 | . . . . . . 1 . . . . 4 Propulsion 8 | . 1 . . . . 3 . . . . 4 Utility 13 | . . . . . 1 1 . . . 1 10 Weapon 8 | . 1 . . . 2 2 . . . . 3 Highest Loss Streak 18 | . 2 . . . 1 3 . . . 1 18 To Critical Strikes . | . . . . . . . . . . . . Average Slot Usage (%) 94 | . 97 100 99 100 97 94 60 81 92 93 84 Engine 8 | . 13 14 14 14 9 6 . . . 3 4 Treads 17 | . 27 28 28 28 22 13 . . . . . Hover 8 | . . . . . . 13 20 24 25 23 22 Device 12 | . 14 14 13 14 9 15 13 13 12 16 11 Storage 9 | . 14 14 14 14 9 7 6 6 6 5 4 Hackware 9 | . . . . . 17 15 13 13 13 16 15 Protection 4 | . . . . . 7 6 . 7 13 11 8 Energy Gun 5 | . 1 14 14 14 10 5 . . . . . Ballistic Gun 8 | . 24 14 14 14 7 . . . . . . Launcher 1 | . . . . . . 3 . 4 6 5 4 Peak Build Rating 100 | 7 8 8 17 16 34 52 41 64 69 74 100 Average Rating 33 | 5 7 8 14 16 28 41 41 55 65 71 82 On Entrance 31 | . 7 8 8 16 16 30 41 41 64 68 74 Naked Turns . | . . . . . . . . . . . . Heaviest Build 46 | 14 15 15 15 15 25 30 12 31 31 32 46 Greatest Support 82 | 40 40 40 40 40 62 82 24 34 44 44 63 Greatest Overweight (x) 8 | 2 . . . . . 2 . 1 8 . . Average Overweight (x) . | . . . . . . . . . . . . Largest Inventory Capacity 8 | 8 8 8 8 8 8 8 8 8 8 8 8 Average Capacity 7 | 7 8 8 8 8 8 8 8 8 8 8 7 Most Carried 8 | 7 8 8 8 8 8 8 8 8 8 8 8 Average Carried 7 | 4 7 8 7 8 7 7 8 7 7 7 7 Final Capacity 8 | 8 8 8 8 8 8 8 8 8 8 8 5 Final Carried 8 | 6 8 8 8 8 8 8 8 7 8 8 5 Class Distribution -------------------- 50% | Hacker-Mutant 40% | Mutant 8% | Scavenger-Mutant Dominant Class ---------------- Mutant | -10/Materials Mutant | -10/Mines Mutant | -10/Exiles Mutant | -9/Mines Hacker-Mutant | -8/Materials Hacker-Mutant | -7/Factory Hacker-Mutant | -6/Factory Hacker-Mutant | -6/Waste Hacker-Mutant | -6/Factory Hacker-Mutant | -5/Factory Hacker-Mutant | -4/Factory Resources | -11 -10 -10 -10 -9 -8 -7 -6 -6 -6 -5 -4 ----------- Run | Yrd Mat Min Exi Min Mat Fac Fac Was Fac Fac Fac Matter Collected 2907 | 290 278 18 . 51 336 337 . 351 39 491 716 Remotely . | . . . . . . . . . . . . Salvage Created 2828 | 91 634 49 . . 424 552 . . 94 501 483 Parts 178 | 6 45 7 . . 27 33 . . 10 19 31 Haulers Intercepted 9 | . 1 . . . 1 3 . . . 3 1 Recyclers Shooed 5 | . 1 . . . 2 1 . . . . 1 Parts Field Recycled . | . . . . . . . . . . . . Retrieved Matter . | . . . . . . . . . . . . Parts Self-Destructed . | . . . . . . . . . . . . Prevented . | . . . . . . . . . . . . Kills | -11 -10 -10 -10 -9 -8 -7 -6 -6 -6 -5 -4 ------- Run | Yrd Mat Min Exi Min Mat Fac Fac Was Fac Fac Fac Combat Hostiles Destroyed 52 | . 13 3 . . 5 8 . . 4 9 10 Melee 1 | . . . . . . . . . . . 1 Guns 24 | . 13 3 . . 5 3 . . . . . Cannons 3 | . . . . . . 1 . . 2 . . AOE 24 | . . . . . . 4 . . 2 9 9 Classes Destroyed 15 | 2 5 . . . 3 2 . . 2 . 1 Worker 7 | . . . . . . 4 . . . 2 1 Builder 6 | . 1 . . . . 2 . . . 1 2 Tunneler 2 | 1 . . . . . . . . . 1 . Hauler 9 | . 1 . . . 1 3 . . . 3 1 Recycler 4 | 1 1 . . . 1 1 . . . . . Mechanic 2 | . . . . . 1 1 . . . . . Operator 4 | . 2 . . . 1 1 . . . . . Swarmer 16 | . 3 3 . . . 3 . . . 2 5 Cutter 2 | . . . . . . . . . 2 . . Grunt 21 | . 10 . . . 1 . . . . 7 3 Duelist 1 | . . . . . . . . . . . 1 Sentry 7 | . . . . . 3 2 . . 1 . 1 Hunter 3 | . . . . . 1 2 . . . . . Programmer 1 | . . . . . . 1 . . . . . Heavy 1 | . . . . . . . . . 1 . . Best Kill Streak 10 | 2 8 3 . . 3 7 . . 4 10 7 Combat Bots Only 7 | . 5 3 . . 1 3 . . 4 4 7 Max Kills in Single Turn 3 | 1 1 2 . . 1 2 . . 2 2 3 Gunslinging 1 | . . 1 . . . . . . . . . Exploded 3 | . . . . . . 1 . . 2 2 3 Melee 1 | . . . . . . . . . . . 1 Uniques/NPCs Destroyed . | . . . . . . . . . . . . Combat | -11 -10 -10 -10 -9 -8 -7 -6 -6 -6 -5 -4 -------- Run | Yrd Mat Min Exi Min Mat Fac Fac Was Fac Fac Fac Hostile Shots Fired 555 | . 62 10 . . 49 177 . . 26 5 226 Missed 214 | . 15 4 . . 15 59 . . 18 2 101 Damage Taken 5619 | . 570 50 . . 632 1366 . . 120 68 2813 Core 1565 | . 103 9 . . 100 152 . . 21 28 1152 Absorbed by Shields . | . . . . . . . . . . . . Redirected to Shielding 148 | . . . . . . . . . 12 . 136 Ignored by Resistances 142 | . . . . . 25 117 . . . . . Regen/Repaired (Parts) 325 | . 10 . . . . . . 209 30 . 76 Core Remaining (%) 84 | 100 . . . 55 81 78 . . 97 97 . Volleys Fired 222 | 5 65 3 . . 40 72 . . 12 15 10 Largest 2 | 2 2 2 . . 2 2 . . 1 1 1 Hottest 80 | 40 60 60 . . 80 80 . . 80 80 80 Shots Fired 350 | 10 130 6 . . 76 91 . . 12 15 10 Gun 278 | 10 130 6 . . 76 56 . . . . . Cannon 34 | . . . . . . 23 . . 11 . . Launcher 38 | . . . . . . 12 . . 1 15 10 Special . | . . . . . . . . . . . . Kinetic 209 | 10 129 3 . . 33 23 . . 11 . . Thermal 54 | . . . . . 29 25 . . . . . Explosive 38 | . . . . . . 12 . . 1 15 10 Electromagnetic 49 | . 1 3 . . 14 31 . . . . . Robot Hit Streak 17 | 2 10 3 . . 11 17 . . 3 2 5 Robot Miss Streak 5 | 1 4 3 . . 5 4 . . 2 . . Penetration Max . | . . . . . . . . . . . . Secondary Targets 3 | . 1 1 . . . 1 . . . . . Max Gunslinging Chain 1 | . 1 1 . . . 1 . . . . . Shots Hit Robots 233 | 6 82 3 . . 53 66 . . 6 8 9 Core Hits 168 | 3 34 3 . . 18 37 . . 8 28 37 Critical Kills 1 | 1 . . . . . . . . . . . Critical Parts Destroyed . | . . . . . . . . . . . . Critical Strikes 3 | 1 . . . . . . . . 1 . 1 Destroy 1 | 1 . . . . . . . . . . . Blast 1 | . . . . . . . . . 1 . . Sever 1 | . . . . . . . . . . . 1 Melee Attacks 20 | . . . . . . . . . . 8 12 Impact . | . . . . . . . . . . . . Slashing 20 | . . . . . . . . . . 8 12 Piercing . | . . . . . . . . . . . . Sneak Attacks 5 | . . . . . . . . . . 1 4 Combat Hostiles . | . . . . . . . . . . . . Follow-up Attacks . | . . . . . . . . . . . . Damage Inflicted 8743 | 53 967 34 . . 705 2118 . . 296 2190 2380 Guns 2165 | 53 865 34 . . 676 537 . . . . . Cannons 590 | . . . . . . 436 . . 154 . . Explosions 5225 | . 98 . . . 27 1115 . . 142 1903 1940 Melee 727 | . . . . . . . . . . 287 440 Ramming 36 | . 4 . . . 2 30 . . . . . Kinetic 1800 | 53 847 24 . . 286 436 . . 154 . . Thermal 580 | . 98 . . . 277 205 . . . . . Explosive 4980 | . . . . . . 1115 . . 142 1903 1820 Electromagnetic 620 | . 18 10 . . 140 332 . . . . 120 Impact . | . . . . . . . . . . . . Slashing 727 | . . . . . . . . . . 287 440 Piercing . | . . . . . . . . . . . . Highest Corruption 21 | . . . . . 3 2 . . . . 21 Average Corruption 4 | . . . . . 3 1 . . . . 6 Corruption Purged . | . . . . . . . . . . . . Corruption Blocked . | . . . . . . . . . . . . Effects 26 | . . . . . 6 2 . . . . 18 Message Errors 3 | . . . . . 1 . . . . . 2 Matter Fused 6 | . . . . . 2 2 . . . . 2 Heat Flow Errors 4 | . . . . . . . . . . . 4 Energy Discharges 6 | . . . . . 2 . . . . . 4 Parts Rejected 1 | . . . . . . . . . . . 1 Data Loss (minor) 2 | . . . . . . . . . . . 2 Data Loss (major) 2 | . . . . . . . . . . . 2 Misdirections 1 | . . . . . . . . . . . 1 Weapon Failures 1 | . . . . . 1 . . . . . . Overload Shots . | . . . . . . . . . . . . Overflow Damage 515 | . 125 . . . . 99 . . 8 73 210 Projectiles 18 | . . . . . . 10 . . 8 . . Explosions 394 | . 125 . . . . 89 . . . 71 109 Melee 103 | . . . . . . . . . . 2 101 Knockbacks 4 | . . . . . . 3 . . 1 . . Impact . | . . . . . . . . . . . . Kinetic 4 | . . . . . . 3 . . 1 . . Secondary . | . . . . . . . . . . . . Self-Inflicted Damage 147 | . 62 . . . 26 59 . . . . . Shots 3 | . 1 . . . 1 1 . . . . . Rammed 5 | . 2 . . . . 3 . . . . . Targets Rammed 7 | . 3 . . . 1 3 . . . . . Kicked . | . . . . . . . . . . . . Crushed 2 | . 1 . . . 1 . . . . . . Highest Temperature 396 | . 12 . . . 98 204 . . 29 66 396 Average Temperature 86 | . 7 . . . 29 44 . . 10 26 141 Received Heat Transfer 727 | . 219 . . . 117 276 . . 6 . 109 Effects 9 | . . . . . . . . . . . 9 Shutdowns 5 | . . . . . . . . . . . 5 Matter Decay 2 | . . . . . . . . . . . 2 Damage (minor) 2 | . . . . . . . . . . . 2 Siege Activations . | . . . . . . . . . . . . Robots Corrupted . | . . . . . . . . . . . . Combat Hostiles . | . . . . . . . . . . . . Parts Fried 1 | . . . . . 1 . . . . . . Impact Corruptions . | . . . . . . . . . . . . Robots Melted . | . . . . . . . . . . . . Combat Hostiles . | . . . . . . . . . . . . Parts Melted 1 | . . . . . . 1 . . . . . Heat Transferred 1125 | . 50 . . . 625 450 . . . . . Parts Sabotaged . | . . . . . . . . . . . . Parts Stolen . | . . . . . . . . . . . . Parts Stripped . | . . . . . . . . . . . . Power Chain Reactions 1 | . . . . . 1 . . . . . . Alert | -11 -10 -10 -10 -9 -8 -7 -6 -6 -6 -5 -4 ------- Run | Yrd Mat Min Exi Min Mat Fac Fac Was Fac Fac Fac Peak Influence 1650 | 10 339 175 . . 149 248 99 70 740 1650 1481 Initial 808 | . 6 90 . . . 25 60 34 49 362 808 Average 267 | 3 113 173 . . 40 84 60 63 357 800 1112 Maximum Alert Level 5 | . 1 . . . . 1 . . 3 5 4 Low Security (%) 72 | 100 71 100 . 100 100 98 100 100 37 . . Level 1 8 | . 28 . . . . 1 . . 30 15 . Level 2 1 | . . . . . . . . . 6 38 . Level 3 7 | . . . . . . . . . 26 24 37 Level 4 9 | . . . . . . . . . . 14 62 Level 5 . | . . . . . . . . . . 7 . High Security . | . . . . . . . . . . . . Max Security . | . . . . . . . . . . . . Squads Dispatched 28 | . 4 . . . 2 9 . . 2 6 5 Investigation 3 | . 1 . . . . . . . . 1 1 Extermination 4 | . . . . . . 1 . . . 1 2 Reinforcement 17 | . 3 . . . 2 5 . . 2 4 1 Assault 1 | . . . . . . . . . . . 1 Garrison 3 | . . . . . . 3 . . . . . Intercept . | . . . . . . . . . . . . Searches Triggered . | . . . . . . . . . . . . Construction Impeded 2 | . . . . . . 1 . . . . 1 Haulers Reinforced 6 | . . . . . . 2 . . . 4 . Active Scanning Responses . | . . . . . . . . . . . . Cargo Convoy Interrupts . | . . . . . . . . . . . . Stealth | -11 -10 -10 -10 -9 -8 -7 -6 -6 -6 -5 -4 --------- Run | Yrd Mat Min Exi Min Mat Fac Fac Was Fac Fac Fac Distress Signals 7 | . 1 . . . 3 . . . 1 . 2 Communications Jammed . | . . . . . . . . . . . . Distress Signals . | . . . . . . . . . . . . Times Spotted 136 | . 33 3 . . 13 18 . 5 10 12 42 Peak Tracking Total 16 | . 4 3 . . 2 4 . 5 6 6 16 Tactical Retreats 16 | . 4 . . . 3 1 . . . . 8 Traps | -11 -10 -10 -10 -9 -8 -7 -6 -6 -6 -5 -4 ------- Run | Yrd Mat Min Exi Min Mat Fac Fac Was Fac Fac Fac Traps Triggered 7 | . 3 . . . 1 1 1 . . . 1 Indirectly . | . . . . . . . . . . . . Trap Hack Attempts . | . . . . . . . . . . . . Triggered . | . . . . . . . . . . . . Disarmed . | . . . . . . . . . . . . Reprogrammed . | . . . . . . . . . . . . Reused 5 | . . . . . . 5 . . . . . Traps Reconfigurated 29 | . . . . . 1 15 . . . 6 7 Traps Extracted . | . . . . . . . . . . . . Installed . | . . . . . . . . . . . . Triggered 6 | . . . . . . 6 . . . . . Machines | -11 -10 -10 -10 -9 -8 -7 -6 -6 -6 -5 -4 ---------- Run | Yrd Mat Min Exi Min Mat Fac Fac Was Fac Fac Fac Machines Disabled 8 | . 1 . . . . 3 . . 1 . 3 Max in Single Turn 1 | . 1 . . . . 1 . . 1 . 1 Garrison Access 2 | . . . . . 1 . . . 1 . . Machines Repaired . | . . . . . . . . . . . . Machines Dismantled . | . . . . . . . . . . . . Machines Sabotaged . | . . . . . . . . . . . . Overloaded Fab Kills . | . . . . . . . . . . . . Hacking | -11 -10 -10 -10 -9 -8 -7 -6 -6 -6 -5 -4 --------- Run | Yrd Mat Min Exi Min Mat Fac Fac Was Fac Fac Fac Machines Accessed 26 | . 6 . 2 . 3 4 3 . 4 2 2 Terminals 14 | . 5 . . . 2 2 2 . 2 . 1 Fabricators 2 | . . . . . . . . . 1 . 1 Repair Stations 3 | . 1 . . . . 2 . . . . . Recycling Units 1 | . . . . . . . 1 . . . . Scanalyzers 2 | . . . . . . . . . . 2 . Garrison Access 2 | . . . . . 1 . . . 1 . . Total Hacks 61 | . 17 . 2 . 9 8 9 . 8 5 3 Successful 28 | . 6 . 2 . 4 2 6 . 4 2 2 Failed 33 | . 11 . . . 5 6 3 . 4 3 1 Catastrophic 4 | . . . . . 1 . . . 1 1 1 Database Lockouts . | . . . . . . . . . . . . Manual 16 | . 7 . 1 . 2 1 1 . 3 . 1 Terminals 37 | . 13 . . . 6 5 6 . 6 . 1 Fabricators 3 | . . . . . . . . . 1 . 2 Repair Stations 7 | . 4 . . . . 3 . . . . . Recycling Units 3 | . . . . . . . 3 . . . . Scanalyzers 5 | . . . . . . . . . . 5 . Garrison Access 4 | . . . . . 3 . . . 1 . . Terminal Hacks 18 | . 4 . 2 . 3 1 5 . 3 . . Record 4 | . . . 1 . . . 2 . 1 . . Part Schematic 1 | . . . . . . . 1 . . . . Prototype ID Bank 3 | . 1 . . . 1 . . . 1 . . Open DSF 1 | . . . . . . 1 . . . . . Level Access Points 1 | . . . . . . . . . 1 . . Emergency Access Points 1 | . 1 . . . . . . . . . . Unreport Threat 1 | . . . . . 1 . . . . . . Hauler Manifests 3 | . 1 . . . 1 . 1 . . . . Zone Layout 2 | . 1 . . . . . 1 . . . . Derelict Proto ID Bank 1 | . . . 1 . . . . . . . . Fabricator Hacks 2 | . . . . . . . . . . . 2 Load Schematic 1 | . . . . . . . . . . . 1 Build 1 | . . . . . . . . . . . 1 Repair Station Hacks 3 | . 2 . . . . 1 . . . . . Scan Component 2 | . 1 . . . . 1 . . . . . Repair 1 | . 1 . . . . . . . . . . Recycling Unit Hacks 1 | . . . . . . . 1 . . . . Retrieve Matter 1 | . . . . . . . 1 . . . . Scanalyzer 2 | . . . . . . . . . . 2 . Insert Component 1 | . . . . . . . . . . 1 . Analyze 1 | . . . . . . . . . . 1 . Garrison Access Hacks 2 | . . . . . 1 . . . 1 . . Seal Access 2 | . . . . . 1 . . . 1 . . Unauthorized Hacks . | . . . . . . . . . . . . Terminals . | . . . . . . . . . . . . Fabricators . | . . . . . . . . . . . . Repair Stations . | . . . . . . . . . . . . Recycling Units . | . . . . . . . . . . . . Scanalyzers . | . . . . . . . . . . . . Garrison Access . | . . . . . . . . . . . . Data Cores Recovered . | . . . . . . . . . . . . Used . | . . . . . . . . . . . . Hacking Detections 23 | . 6 . . . 3 4 3 . 3 2 2 Full Trace Events 3 | . 1 . . . . . . . . 1 1 Feedback Events . | . . . . . . . . . . . . Feedback Blocked . | . . . . . . . . . . . . Robot Schematics Acquired . | . . . . . . . . . . . . Robots Built . | . . . . . . . . . . . . Authchips . | . . . . . . . . . . . . Time . | . . . . . . . . . . . . Total Robot Build Rating . | . . . . . . . . . . . . Part Schematics Acquired 1 | . . . . . . . 1 . . . . Parts Built 1 | . . . . . . . . . . . 1 Authchips . | . . . . . . . . . . . . Time 58 | . . . . . . . . . . . 58 Total Part Build Rating 3 | . . . . . . . . . . . 3 Parts Repaired 1 | . 1 . . . . . . . . . . Time 26 | . 26 . . . . . . . . . . Parts Recycled . | . . . . . . . . . . . . Recycled Matter . | . . . . . . . . . . . . Retrieved Matter . | . . . . . . . . . . . . Retrieved Components . | . . . . . . . . . . . . Parts Scanalyzed 1 | . . . . . . . . . . 1 . Part Schematics Acquired . | . . . . . . . . . . . . Parts Damaged 1 | . . . . . . . . . . 1 . Bothacking | -11 -10 -10 -10 -9 -8 -7 -6 -6 -6 -5 -4 ------------ Run | Yrd Mat Min Exi Min Mat Fac Fac Was Fac Fac Fac Used RIF Installer . | . . . . . . . . . . . . Robots Hacked . | . . . . . . . . . . . . Non-combat . | . . . . . . . . . . . . Combat . | . . . . . . . . . . . . Robot Hacks Applied . | . . . . . . . . . . . . Relay Couplers Released . | . . . . . . . . . . . . Fabnet Peak Effective % . | . . . . . . . . . . . . Robots Rewired . | . . . . . . . . . . . . Allies Hacked . | . . . . . . . . . . . . Hacks Repelled . | . . . . . . . . . . . . Allies | -11 -10 -10 -10 -9 -8 -7 -6 -6 -6 -5 -4 -------- Run | Yrd Mat Min Exi Min Mat Fac Fac Was Fac Fac Fac Total Allies 22 | . . 2 . . . . . 20 . . . Largest Group 20 | . . 2 2 . . . . 20 16 16 13 Highest-Rated Group 715 | . . 43 43 . . . . 715 608 608 529 Highest-Rated Ally 50 | . . 31 31 . . . . 50 50 50 50 Total Orders . | . . . . . . . . . . . . Ally Attacks 238 | . . . . . . . . 40 41 66 91 Total Damage 8936 | . . . . . . . . 3006 1293 2344 2293 Kills 44 | . . . . . . . . 9 9 15 11 Allies Corrupted . | . . . . . . . . . . . . Allies Melted . | . . . . . . . . . . . . Turrets Deployed 1 | . . . 1 . . . . . . . . Intel | -11 -10 -10 -10 -9 -8 -7 -6 -6 -6 -5 -4 ------- Run | Yrd Mat Min Exi Min Mat Fac Fac Was Fac Fac Fac Robot Analysis Total . | . . . . . . . . . . . . Derelict Logs Recovered 1 | . . . . 1 . . . . . . . Drone Launches . | . . . . . . . . . . . . Drone Recoveries . | . . . . . . . . . . . . Exploration | -11 -10 -10 -10 -9 -8 -7 -6 -6 -6 -5 -4 ------------- Run | Yrd Mat Min Exi Min Mat Fac Fac Was Fac Fac Fac Turns Passed 6874 | 128 1352 289 833 202 1156 1262 116 229 178 270 859 Spaces Moved 5313 | 61 662 163 517 126 579 1133 199 293 228 338 1014 Core 8 | 7 . . . . . . . . 1 . . Treads 2411 | 54 662 163 517 126 579 310 . . . . . Legs . | . . . . . . . . . . . . Wheels . | . . . . . . . . . . . . Hover 2894 | . . . . . . 823 199 293 227 338 1014 Flight . | . . . . . . . . . . . . Fastest Speed 40 | 50 160 160 160 160 145 40 42 40 40 40 40 Average Speed 98 | 152 160 160 160 160 156 83 42 48 41 40 48 Slowest Speed 450 | 160 160 160 160 160 160 225 42 102 450 40 70 Overloaded Moves . | . . . . . . . . . . . . Propulsion Burnouts . | . . . . . . . . . . . . Robots Hopped . | . . . . . . . . . . . . Cave-ins Triggered 1 | . . . . . . . . . . . 1 Exploration Rate (%) 37 | 6 76 45 89 27 41 28 5 88 10 11 28 Regions Visited 11 Branch Regions 3 Pre-discovered Areas 1 | . . . 1 . . . . . . . . Known Exits Taken 1 | . . . . . . . . . 1 . . Unknown Exits Taken 8 | 1 1 1 1 1 1 1 . . . 1 . Scrap Searched 1 | . . . . 1 . . . . . . . Spaces Dug 5 | . . . . . . . . . . . 5 Terrain Destroyed 245 | . 24 . . . 3 57 . . 8 94 59 Melee 5 | . . . . . . . . . . . 5 Projectile 3 | . . . . . . 2 . . 1 . . AOE 237 | . 24 . . . 3 55 . . 7 94 54 Terrain Rammed . | . . . . . . . . . . . . Walls Destroyed . | . . . . . . . . . . . . Machines Disabled . | . . . . . . . . . . . . Actions | -11 -10 -10 -10 -9 -8 -7 -6 -6 -6 -5 -4 --------- Run | Yrd Mat Min Exi Min Mat Fac Fac Was Fac Fac Fac Total 6565 | 84 835 185 524 127 760 1356 231 378 298 438 1349 Wait 744 | 5 90 20 . 2 93 72 32 78 36 49 267 Move 5302 | 60 661 162 516 125 578 1132 199 292 227 337 1013 Hop . | . . . . . . . . . . . . Pick Up 42 | 7 6 . 2 . 11 10 . 2 2 . 2 Fast Attach 76 | 6 6 . 2 . 7 22 . 2 9 9 13 Attach 26 | 1 1 . . . 7 5 . 3 . 3 6 Detach 11 | . . . . . 1 2 . . . 5 3 Swap 28 | . . . . . 8 8 . 1 1 5 5 Drop 80 | . 3 . 4 . 14 30 . . 11 7 11 Fire 222 | 5 65 3 . . 40 72 . . 12 15 10 Melee 20 | . . . . . . . . . . 8 12 Ram 3 | . . . . . . 3 . . . . . Kick . | . . . . . . . . . . . . Crush 4 | . 3 . . . 1 . . . . . . Escape Stasis 7 | . . . . . . . . . . . 7 Rewire . | . . . . . . . . . . . . Trap . | . . . . . . . . . . . . Miscellaneous . | . . . . . . . . . . . . Route ------- -11/Scrapyard -10/Materials (discovered 4 exits: [*Mat x2] / [*Min] / [*Sub]) -10/Mines -10/Exiles -9/Mines -8/Materials -7/Factory -6/Factory -6/Waste -6/Factory (discovered 4 exits: *Fac x4) -5/Factory -4/Factory History --------- Turn | Location | Event 24 | -11/Scrapyard | Discovered new exit (range 16) 129 | -11/Scrapyard | Entered Materials 301 | -10/Materials | Build established: Mutant 430 | -10/Materials | Repaired Lgt. Treads 801 | -10/Materials | Discovered new exit (range 9) 889 | -10/Materials | Discovered new exit (range 7) 1323 | -10/Materials | Discovered new exit (range 9) 1365 | -10/Materials | Discovered new exit (range 14) 1481 | -10/Materials | Entered Mines 1756 | -10/Mines | Deemed a non-threat by the Exiles lab entrance 1757 | -10/Mines | Discovered new exit (range 5) 1770 | -10/Mines | Entered Exiles 1770 | -10/Exiles | Accompanied by 2 allies 1800 | -10/Exiles | Led the pair of lost Derelicts to a safe place 1809 | -10/Exiles | Met 8R-AWN 1836 | -10/Exiles | Met EX-HEX 1881 | -10/Exiles | Met EX-BIN 1898 | -10/Exiles | Aligned with FarCom system 1900 | -10/Exiles | Given EX-Vault access code 1938 | -10/Exiles | Opened EX-Vault 1948 | -10/Exiles | DAS Turret deployed 1950 | -10/Exiles | Found PSU Rigger 1957 | -10/Exiles | Found Trap Reconfigurator 1967 | -10/Exiles | Found Deploy-a-Sentry 2006 | -10/Exiles | Warned to stay clear of 0b10 Research branches 2053 | -10/Exiles | Met EX-DEC 2062 | -10/Exiles | Learned location of Zion (-7) 2144 | -10/Exiles | Discovered new exit (range 14) 2378 | -10/Exiles | Visited The Gauntlet 2603 | -10/Exiles | Left Exiles lab with Trap Reconfigurator 2603 | -10/Exiles | Entered Mines 2669 | -9/Mines | Discovered new exit (range 8) 2721 | -9/Mines | Learned Materials terminal intel 2805 | -9/Mines | Entered Materials 2805 | -8/Materials | Evolved 4 slots: Propulsion x1, Utility x3 2806 | -8/Materials | Loaded intel: 12 terminal locations 3110 | -8/Materials | Build established: Hacker-Mutant 3127 | -8/Materials | Discovered new exit (range 5) 3961 | -8/Materials | Entered Factory 3961 | -7/Factory | Evolved 2 slots: Propulsion x1, Utility x1 4042 | -7/Factory | Garrison activated, responded to threat 4137 | -7/Factory | Lost 3 parts (1n2w) 4402 | -7/Factory | Build established: Scavenger-Mutant 4796 | -7/Factory | Build established: Hacker-Mutant 5203 | -7/Factory | Discovered new exit (range 5) 5223 | -7/Factory | Entered another Factory area 5223 | -6/Factory | Evolved 2 slots: Propulsion x1, Utility x1 5338 | -6/Factory | Discovered new exit (range 15) 5339 | -6/Factory | Sucked down chute 5339 | -6/Factory | Entered Waste 5340 | -6/Waste | Met a frightened Derelict 5353 | -6/Waste | Warlord forces began an assault 5364 | -6/Waste | Spotted C-40 Crusher 5371 | -6/Waste | Spotted C-40 Crusher 5371 | -6/Waste | Spotted C-40 Crusher 5374 | -6/Waste | Spotted C-40 Crusher 5374 | -6/Waste | Spotted C-40 Crusher 5375 | -6/Waste | Spotted C-40 Crusher 5384 | -6/Waste | Allies destroyed C-40 Crusher 5393 | -6/Waste | Allies destroyed C-40 Crusher 5405 | -6/Waste | Found Prototype Launcher 5423 | -6/Waste | Discovered new exit (range 16) 5459 | -6/Waste | Identified Mni. Smartbomb Launcher 5568 | -6/Waste | Entered Factory 5568 | -6/Factory | Accompanied by 16 allies 5578 | -6/Factory | Identified exit to Factory 5746 | -6/Factory | Entered another Factory area 5746 | -5/Factory | Accompanied by 16 allies 5746 | -5/Factory | Evolved 2 slots: Utility x2 5963 | -5/Factory | Lost 3 allies 5968 | -5/Factory | Discovered new exit (range 16) 6016 | -5/Factory | Entered another Factory area 6016 | -4/Factory | Accompanied by 13 allies 6016 | -4/Factory | Evolved 2 slots: Power x1, Propulsion x1 6164 | -4/Factory | Fabricated Imp. VTOL Module? 6315 | -4/Factory | Crushed by falling debris 6470 | -4/Factory | Lost 6 allies 6516 | -4/Factory | First assault squad dispatched 6746 | -4/Factory | Destroyed 7 combat bots 6765 | -4/Factory | System corruption reached 10% 6789 | -4/Factory | Core integrity fell below 50% 6841 | -4/Factory | Core integrity fell below 20% 6870 | -4/Factory | Lost 18 parts (3p4n8u3w) 6875 | -4/Factory | Destroyed by P-70 Sage with Tesla Rifle Last Messages --------------- 06773_ Connecting with Terminal... 06785_ System corrupted: Energy discharge (-26). 06788_ P-70 Sage resets P-70 Sage, system corruption cleaned. 06789_ R-10 Processor inserts Lrn. Sensor Array into recycling unit. 06799_ Sml. Storage Unit destroyed. 06800_ Terminal disabled. 06803_ ECM Suite destroyed. 06810_ System corrupted: Energy discharge (-27). 06816_ Molecular Scythe destroyed. 06820_ Acquired Triangulator. 06824_ Acquired Point Defense Array. 06826_ Assembly Bed disabled. 06836_ P-70 Sage resets P-70 Sage, system corruption cleaned. 06836_ Point Defense Array destroyed. 06838_ Hacking Suite destroyed. 06847_ Door malfunctions. 06850_ MZKC5|>J:K,UJ,TOVW0EKYL|ADOCEUVK G2PM 06869_ Acquired System Guard. 06870_ System corrupted: Energy discharge (-1). 06875_ Imp. Hacking Suite destroyed. Map ----- +----------------------------------------------------+ | ????????????????????????????????????? ?? | | ?????????????????????????????????????"" | | ????????????????????????????????????""" | | ??????????????????????????????????? """ | | ?????????###########?????????????????"" | | ?????????# #??????????????????? | | ?????????# #########+###???????? | | ?????????# #???????? | | ?????????# ######### | | ?????????# | | ?????????# p | | ?????????# C% | | ?????????# pp ####### ######### | | ?????????# pp #?????# #???????? | | ???????#######/#######???# #???????? | | ???????# p #???# #???????? | | ???????# #???# #???????? | | ???????# #???# +???????? | | ???????# #???# #???????? | | ???????# #???# #???????? | | ???????# #???# #???????? | | ???????# ! ! #???# #???????? | | ???????# #??? #???????? | | ???????# #???T #???????? | | ???????# #??## #???????? | | ???????# @ #???# #???????? | | ???????########/######???# #???????? | | ??????????????# #????????# #???????? | | ??????????????# #????????? ????????? | | ??????????????# ??????????????????????? | | ??????????????# ??????????H???????????? | | ??????????????# ??????????????????????? | | ??????????????+ ??????????????????????? | | ??????????????# ??????????????????????? | | ??????????????? ??????????????????????? | | ??????????????? ?????????????????????? | | ???????????????###?????????????????????? | | ???????????????????????????????????????? | | ???????????????????????????????????????? | | ???????????????????????????????????????? | | ???????????????????????????????????????? | | ???????????????????????????????????????? | | ???????????????????????????????????????? | | ???????????????????????????????????????? | | ???????????????????????????????????????? | | ???????????????????????????????????????? | | ???????????????????????????????????????? | | ???????????????????????????????????????? | | ???????????????????????????????????????? | | ???????????????????????????????????????? | +----------------------------------------------------+ Best States ------------- Heat Dissipation 43 Energy Generation 34 Energy Capacity 250 Matter Stores 300 Matter Capacity 600 Sight Range 16 Terrain Scan Density 10 Corruption Containment 8 Armor Coverage 225 Resistance: KI 20 Propulsion Shielding 66 Point Defense Rating 160 Evasion (%) 57 Launcher Accuracy 30 Recoil Reduction 4 Offensive Hacking 46 Defensive Hacking 10 Item Schematics ----------------- Imp. VTOL Module | -6/Factory | Hacked Robot Schematics ------------------ None Fabricated ------------ Imp. VTOL Module | x1 | -4/Factory Alien Tech Used ----------------- None Achievements -------------- Dramatic Entrance Remodeling Unlikely Earthworm We Are Legion Challenges ------------ None Game ------ Seed GravmagPointFlail Manual? 0 Play Time 01:36:59 Cumulative 13.2 hours Start 2025.03.15 @ 12:47:24 End 2025.03.15 @ 14:30:28 Sessions 1 Manual Loads 0 Difficulty Rogue Special Mode None Game No. 12 Rogue 12 Adventurer 0 Explorer 0 Win Type - Total 0 Types 0/0/0/0/0/0/0/0/0 Lore% 19 Gallery% 22 Achievement% 23 Wizard Run 0 Options --------- Layout 0 ASCII 0 Keyboard 0 Movement Vi Keybinds 0 Fullscreen 1 Font 24/Tamsyn Map View 76x50 Zoom Use 0% Tactical HUD 1 Map Filters NONE Filters NONE Steam 1 RUN: e40d3019-45a0-4d4c-8a1c-db6717563074